bitfinex/quotes_ETHUSD_20260121
["timestamp","ask_amount","ask_price","bid_price","bid_amount"]
[1769017814794,10.34197461,2900.8,2899.3,0.07632396]
[1769017814795,1.89421935,2900.6,2899.3,0.07632396]
[1769017814978,1.89421935,2900.6,2899.1,0.07632396]
[1769017814979,6.89464974,2900.8,2899.1,0.07632396]
[1769017815591,6.89464974,2900.8,2898.9,0.07632396]
[1769017815815,10.34197461,2900.8,2898.9,0.07632396]
[1769017816016,3.44732487,2900.8,2899.3,0.07632396]
[1769017816216,6.89346154,2901.3,2899.4,0.07632396]
[1769017816402,10.34090517,2901.1,2899.1,8.29238588]
[1769017816602,6.89393678,2901.1,2899.4,3.44897857]
[1769017817589,10.34090517,2901.1,2899.3,3.52538015]
[1769017817810,10.34090517,2901.1,2899.3,3.44910714]
[1769017818119,10.34090517,2901.1,2899.1,11.74171591]
[1769017818120,6.89393678,2901.1,2899.4,3.44896528]
[1769017818286,0.84433048,2901.0,2899.4,3.44896528]
[1769017818488,6.89441206,2900.9,2899.1,8.21606192]
[1769017818814,6.89441206,2900.9,2898.9,3.44953291]
[1769017818815,18.61884196,2900.9,2898.9,3.44953291]
[1769017819320,8.27722387,2900.8,2898.7,3.44973038]
[1769017819487,10.34161809,2900.9,2898.6,8.21606192]
[1769017819488,10.13910807,2900.7,2898.6,8.21606192]
[1769017819687,10.13910807,2900.7,2898.6,11.74226449]
[1769017820420,10.34268771,2900.6,2898.7,3.44982233]
[1769017820797,8.27722387,2900.5,2898.3,0.002]
[1769017821124,8.27722387,2900.2,2898.3,0.002]
[1769017821787,30.0,2899.9,2898.3,0.002]
[1769017822022,10.0,2900.3,2898.3,0.002]
[1769017822023,8.41137378,2900.3,2898.3,0.002]
[1769017822718,18.75548796,2900.2,2898.3,0.002]
[1769017823433,15.3074499,2900.2,2898.3,0.002]
[1769017823616,1.53074499,2900.1,2898.4,8.49069301]
[1769017823809,6.89607612,2900.2,2898.4,8.49069301]
[1769017824016,6.89607612,2900.2,2898.4,8.41436905]
[1769017824525,6.89607612,2900.2,2898.3,0.07832396]
[1769017824526,22.20447722,2900.0,2898.3,0.002]
[1769017824695,30.0,2899.8,2898.3,0.002]
[1769017825026,30.0,2899.5,2898.1,0.002]
[1769017825219,8.41137378,2899.4,2898.1,0.002]
[1769017826526,13.7964336,2899.3,2898.1,0.002]
[1769017826722,22.20780738,2899.3,2898.1,0.002]
[1769017826948,2.27778074,2899.2,2898.1,0.002]
[1769017827124,12.27778074,2899.2,2898.1,0.002]
[1769017828828,6.89869268,2899.1,2898.1,0.002]
[1769017830334,3.44827586,2900.0,2898.1,0.002]
[1769017830510,10.34482758,2900.0,2898.2,8.41436905]
[1769017830832,0.35245998,2899.9,2898.4,8.41436905]
[1769017831007,3.4478003,2900.4,2898.7,0.07632396]
[1769017831210,0.001,2900.5,2899.3,0.07632396]
[1769017831408,3.44661198,2901.4,2899.6,8.41436905]
[1769017831632,0.3447612,2901.3,2899.8,8.41436905]
[1769017831938,3.44523289,2902.6,2900.2,8.49069301]
[1769017832102,3.44690525,2902.0,2900.5,8.41436905]
[1769017832298,0.001,2902.0,2900.6,8.49069301]
[1769017832649,0.001,2902.0,2900.8,8.49069301]
[1769017832797,0.001,2902.0,2900.8,8.41436905]
[1769017833654,0.001,2902.0,2900.3,8.41436905]
[1769017835235,0.001,2902.0,2899.8,3.52476506]
[1769017835402,0.001,2902.0,2900.1,3.44808659]
[1769017836409,0.571,2902.0,2900.0,8.41436905]
[1769017836825,10.33805436,2901.9,2900.0,8.41436905]
[1769017837034,1.09090544,2901.8,2900.0,8.41436905]
[1769017837339,1.09090544,2901.8,2899.5,11.86322983]
[1769017837519,30.0,2901.5,2899.5,8.41436905]
[1769017837906,30.0,2901.4,2899.0,0.57]
[1769017838104,3.39115248,2901.3,2899.4,3.44891347]
[1769017838566,29.358,2901.4,2899.3,3.44902168]
[1769017838850,10.34019231,2901.3,2899.3,3.44902489]
[1769017839222,10.34019231,2901.3,2899.8,8.49069301]
[1769017839223,3.44673077,2901.3,2899.8,8.49069301]
[1769017839424,4.53813248,2901.8,2900.0,8.49069301]
[1769017839425,3.44625564,2901.7,2900.0,8.49069301]
[1769017839643,3.44625564,2901.7,2900.2,0.07632396]
[1769017839926,3.44718546,2901.8,2900.2,8.49069301]
[1769017840345,0.001,2901.8,2900.4,8.49069301]
[1769017840657,0.001,2902.7,2900.7,8.41436905]
[1769017840861,0.18005167,2903.6,2901.9,6.89203624]
[1769017841172,6.88838201,2903.9,2902.0,8.41436905]
[1769017841321,0.001,2903.9,2902.0,8.41436905]
[1769017841526,10.67639404,2903.9,2902.1,8.41436905]
[1769017841756,0.03699028,2903.7,2901.9,3.44601812]
[1769017841981,0.03699028,2903.7,2901.5,8.41436905]
[1769017842154,38.41137378,2903.6,2900.9,8.41436905]
[1769017842359,8.41137378,2903.5,2901.2,3.44677856]
[1769017842532,0.84113738,2903.4,2901.3,8.41436905]
[1769017842735,0.03699028,2903.7,2901.3,8.41436905]
[1769017842924,6.881,2903.2,2900.8,11.86167332]
[1769017843125,8.41137378,2903.1,2900.8,8.41436905]
[1769017843323,16.881,2903.2,2900.6,0.57]
[1769017843324,30.0,2902.7,2900.6,0.57]
[1769017843524,3.39115248,2902.6,2900.6,0.57]
[1769017843751,3.39115248,2902.6,2900.2,8.41436905]
[1769017844737,0.03699028,2901.9,2899.6,11.86306639]
[1769017845047,13.78454752,2901.8,2899.6,8.41436905]
[1769017845226,2.22329116,2901.7,2899.6,11.86311715]
[1769017845724,2.22329116,2901.7,2899.6,15.3118687]
[1769017845931,2.22329116,2901.7,2899.6,11.86311715]
[1769017846130,2.22329116,2901.7,2899.6,15.3118687]
[1769017846560,2.22329116,2901.7,2899.7,7.90268724]
[1769017846861,6.89227376,2901.8,2899.8,7.82636328]
[1769017847027,37.88065701,2902.1,2899.8,11.27481766]
[1769017847228,37.88065701,2902.1,2898.6,5.15168062]
[1769017847229,37.88065701,2901.9,2899.2,7.82636328]
[1769017847438,21.27180949,2901.8,2899.3,11.27537373]
[1769017847639,21.27180949,2901.8,2899.3,7.82636328]
[1769017847640,11.27180949,2901.8,2899.3,7.82636328]
[1769017847837,13.78217272,2902.3,2899.8,3.44849845]
[1769017848038,30.57,2902.2,2899.7,3.44856506]
[1769017848255,10.57,2902.2,2899.8,3.44849811]
[1769017848569,3.22328297,2902.1,2899.6,7.90268724]
[1769017848862,3.22328297,2902.1,2900.1,7.82636328]
[1769017849061,21.70171977,2901.9,2899.5,7.82636328]
[1769017849266,7.88065701,2901.8,2899.5,7.82636328]
[1769017849563,0.03699028,2900.9,2898.9,7.82636328]
[1769017849768,0.03699028,2900.9,2899.8,0.002]
[1769017851360,6.89464974,2900.8,2899.8,0.002]
[1769017851564,1.0378913,2900.7,2899.8,0.002]
[1769017851861,11.0378913,2900.7,2899.5,0.002]
[1769017853350,6.89536286,2900.5,2899.5,0.002]
[1769017853762,3.44768143,2900.5,2899.5,0.002]
[1769017854269,6.89536286,2900.5,2899.5,0.002]
[1769017854450,7.240131,2900.5,2899.5,0.002]
[1769017856340,10.68781243,2900.5,2899.5,0.002]
[1769017857581,7.88065701,2900.4,2899.5,0.002]
[1769017857870,0.03699028,2900.0,2898.4,0.002]
[1769017858536,7.88065701,2900.3,2898.5,7.82636328]
[1769017859033,0.03699028,2900.0,2898.4,0.002]
[1769017859237,30.0,2899.9,2898.4,0.002]
[1769017859433,10.34554107,2899.8,2898.4,0.002]
[1769017859862,13.79405476,2899.8,2898.4,0.002]
[1769017860066,1.37940548,2899.7,2898.4,0.002]
[1769017860441,3.44851369,2899.8,2898.4,8.24302454]
[1769017860898,6.89702738,2899.8,2898.4,0.002]
[1769017861478,7.98849495,2900.1,2898.4,0.002]
[1769017861666,10.91411418,2900.2,2898.4,8.24302454]
[1769017861844,1.37921522,2900.1,2898.4,8.24302454]
[1769017862363,6.89607612,2900.2,2898.6,0.002]
[1769017862566,6.89607612,2900.2,2898.6,8.24302454]
[1769017862769,0.34476814,2900.5,2898.7,8.63004031]
[1769017862963,7.98849495,2900.9,2898.7,8.63004031]
[1769017863168,6.89464974,2900.8,2898.8,8.63004031]
[1769017863477,10.34200567,2900.8,2898.9,3.44958432]
[1769017863675,0.001,2901.4,2899.4,8.24102454]
[1769017863676,6.89346154,2901.3,2899.4,8.24102454]
[1769017863977,6.89346154,2901.3,2899.6,8.24102454]
[1769017864280,7.58290769,2901.3,2899.6,8.24102454]
[1769017864466,11.02963846,2901.3,2899.6,8.24102454]
[1769017864774,22.46486418,2901.3,2899.0,8.24102454]
[1769017864964,19.01813341,2901.3,2899.0,8.24102454]
[1769017865272,19.01813341,2901.3,2899.0,8.3173485]
[1769017865442,1.90191334,2901.2,2899.2,8.24102454]
[1769017865646,10.34090517,2901.1,2899.2,8.24102454]
[1769017865844,6.89393678,2901.1,2899.3,8.24102454]
[1769017866675,10.34090517,2901.1,2899.3,8.24102454]
[1769017866845,7.98849495,2900.9,2898.7,8.24102454]
[1769017867046,0.7988495,2900.8,2899.3,8.24102454]
[1769017867275,6.89393678,2901.1,2899.3,8.24102454]
[1769017867649,10.34090517,2901.1,2899.3,8.24102454]
[1769017867849,6.89393678,2901.1,2899.3,11.69013016]
[1769017868054,6.89393678,2901.1,2899.4,8.24102454]
[1769017868256,8.00065364,2901.1,2899.4,8.24102454]
[1769017869386,11.44762203,2901.1,2899.4,8.24102454]
[1769017869891,8.00065364,2901.1,2899.4,11.68991908]
[1769017870388,11.44762203,2901.1,2899.4,8.24102454]
[1769017870580,1.14846123,2901.0,2899.5,0.38901577]
[1769017871659,1.14846123,2901.0,2899.4,8.24102454]
[1769017871859,6.89441206,2900.9,2899.4,8.24102454]
[1769017872977,0.03699028,2901.2,2899.5,8.24102454]
[1769017872978,3.44684957,2901.2,2899.5,8.24102454]
[1769017873178,3.44684957,2901.2,2899.7,8.24102454]
[1769017873492,6.89369914,2901.2,2899.7,8.24102454]
[1769017873862,6.89430852,2901.4,2899.9,8.24102454]
[1769017874088,6.89430852,2901.4,2899.1,3.4493049]
[1769017874089,7.98849495,2901.3,2899.1,3.4493049]
[1769017874276,1.83295,2901.2,2899.5,3.44881086]
[1769017874578,0.001,2901.1,2899.4,8.24102454]
[1769017874873,0.001,2901.1,2899.4,11.6900046]
[1769017875068,0.001,2901.1,2899.4,11.68995588]
[1769017875276,0.183395,2901.0,2899.5,3.448858]
[1769017875995,6.89441206,2900.9,2899.4,8.24102454]
[1769017876294,6.89441206,2900.9,2899.4,11.68999354]
[1769017876491,6.89441206,2900.9,2899.4,8.24102454]
[1769017876694,6.89441206,2900.9,2899.3,3.44904502]
[1769017876695,21.2639975,2900.9,2899.0,7.57092863]
[1769017876899,0.70778071,2900.8,2899.0,7.57092863]
[1769017877194,0.70778071,2900.8,2899.1,3.44934315]
[1769017877500,3.63052711,2901.0,2899.5,7.57092863]
[1769017877662,7.07765922,2901.0,2899.5,7.57092863]
[1769017878062,7.07765922,2901.0,2899.5,11.01978464]
[1769017878483,10.52479133,2901.0,2899.5,7.57092863]
[1769017878665,10.52479133,2901.0,2899.1,3.44924762]
[1769017878865,1.05257913,2900.9,2899.3,3.44904452]
[1769017879177,1.05257913,2900.9,2899.3,7.57092863]
[1769017879389,1.05257913,2900.9,2899.4,7.57092863]
[1769017879994,3.44732487,2900.8,2899.4,11.01987455]
[1769017880294,4.49985337,2900.9,2899.4,11.01990528]
[1769017880482,0.001,2901.1,2899.5,7.64725259]
[1769017880686,3.4479967,2901.1,2899.5,7.64725259]
[1769017881107,0.001,2901.1,2899.5,7.64725259]
[1769017881279,0.001,2901.1,2900.0,7.57092863]
[1769017881604,0.001,2901.4,2900.2,7.57092863]
[1769017881789,3.44762535,2901.4,2900.3,7.57092863]
[1769017882108,0.001,2901.4,2900.3,7.57092863]
[1769017882301,0.001,2901.4,2899.9,7.57092863]
[1769017883170,0.001,2901.4,2899.9,11.01931775]
[1769017883398,0.001,2901.4,2899.9,7.57092863]
[1769017884274,0.001,2901.4,2899.6,11.0195916]
[1769017884516,0.001,2901.4,2899.7,7.57092863]
[1769017884805,0.001,2901.4,2899.8,7.57092863]
[1769017884977,0.001,2901.4,2899.8,11.01943565]
[1769017885177,0.001,2901.4,2899.8,7.57092863]
[1769017885614,7.47617338,2901.4,2899.6,3.44873287]
[1769017885989,0.001,2901.4,2899.5,8.21725259]
[1769017886214,0.001,2901.4,2899.6,11.01964853]
[1769017886397,0.001,2901.4,2899.7,0.38901577]
[1769017886608,7.47617338,2901.4,2899.7,0.38901577]
[1769017886786,7.47617338,2901.4,2899.6,0.002]
[1769017886787,8.22279072,2901.3,2899.6,0.002]
[1769017887324,7.51216366,2901.1,2899.6,0.002]
[1769017888305,7.47517338,2900.9,2899.6,0.002]
[1769017889581,7.47517338,2900.8,2899.4,0.002]
[1769017889781,7.47517338,2900.8,2898.6,11.02278865]
[1769017890118,17.23543605,2901.0,2898.6,7.57292863]
[1769017890119,7.47517338,2900.6,2898.6,7.57292863]
[1769017890293,17.81821767,2900.5,2898.6,7.57292863]
[1769017890826,21.2658991,2900.5,2898.6,7.57292863]
[1769017891122,7.47517338,2900.4,2898.6,0.002]
[1769017891689,7.51216366,2900.1,2898.6,0.002]
[1769017891919,8.22638975,2900.0,2898.6,0.002]
[1769017892298,6.89678954,2899.9,2898.6,0.002]
[1769017892499,3.44839477,2899.9,2898.6,7.57292863]
[1769017892824,6.89678954,2899.9,2898.6,7.57292863]
[1769017893121,10.34518431,2899.9,2898.6,0.002]
[1769017893419,1.03451843,2899.8,2898.6,0.002]
[1769017894535,3.44863261,2899.7,2898.6,0.002]
[1769017895018,3.44827586,2900.0,2898.6,0.002]
[1769017895183,3.44827586,2900.0,2898.7,7.57092863]
[1769017895382,10.92292375,2900.5,2898.7,7.57092863]
[1769017895383,3.4478003,2900.4,2898.7,7.57092863]
[1769017895589,3.4478003,2900.4,2898.9,7.57092863]
[1769017896288,6.89562243,2900.4,2898.9,7.57092863]
[1769017896595,10.34276201,2900.6,2898.9,7.57092863]
[1769017896986,10.34276201,2900.6,2898.9,11.02049982]
[1769017897186,6.89512514,2900.6,2899.0,7.57092863]
[1769017897383,1.10901373,2900.5,2899.0,7.57092863]
[1769017897619,6.89512514,2900.6,2899.0,7.57092863]
[1769017898538,3.44756257,2900.6,2899.2,7.57092863]
[1769017898827,3.44702764,2901.1,2899.5,7.57092863]
[1769017898828,3.44696839,2901.1,2899.5,7.57092863]
[1769017899128,3.4479015,2901.2,2899.7,7.57092863]
[1769017899452,0.001,2901.2,2899.7,7.57092863]
[1769017899600,8.96873669,2902.6,2900.3,7.57092863]
[1769017899601,3.44549907,2902.4,2900.3,7.57092863]
[1769017899799,3.44569539,2902.2,2900.3,7.57092863]
[1769017900016,7.47517338,2902.5,2900.3,7.57092863]
[1769017900217,4.01495705,2902.8,2900.7,7.57092863]
[1769017900218,10.3348491,2902.8,2900.7,7.57092863]
[1769017900501,10.3348491,2902.8,2900.8,7.57092863]
[1769017900923,7.47517338,2902.7,2900.3,11.01876086]
[1769017901124,13.7797988,2902.8,2900.7,3.44736436]
[1769017901125,9.6006706,2902.6,2900.7,3.44736436]
[1769017901432,9.6006706,2902.6,2900.8,7.57092863]
[1769017901749,2.12549722,2902.6,2900.8,7.64725259]
[1769017901897,6.8898994,2902.8,2901.1,7.57092863]
[1769017901898,3.4449497,2902.8,2901.1,7.57092863]
[1769017902309,6.8898994,2902.8,2901.1,7.57092863]
[1769017902603,3.44487559,2902.9,2901.1,7.57092863]
[1769017902802,1.03343003,2902.8,2901.1,7.57092863]
[1769017903917,8.50860341,2902.8,2901.1,7.57092863]
[1769017904612,10.33520514,2902.7,2900.7,11.01831891]
[1769017904812,10.33520514,2902.7,2900.8,7.57092863]
[1769017905014,1.88438085,2902.6,2900.8,7.57092863]
[1769017905328,1.88438085,2902.6,2900.9,7.9599444]
[1769017905729,9.71859434,2902.6,2900.9,0.38901577]
[1769017906662,18.1701308,2902.5,2900.9,0.38901577]
[1769017906947,7.83421349,2902.4,2900.9,0.38901577]
[1769017907152,1.81701308,2902.3,2900.9,0.38901577]
[1769017908540,1.81701308,2902.3,2900.6,0.07632396]
[1769017908541,1.81701308,2902.3,2900.7,7.93702181]
[1769017908839,6.89132382,2902.2,2900.7,7.93702181]
[1769017909008,6.89132382,2902.2,2900.4,0.38901577]
[1769017909009,14.72553731,2902.2,2900.4,0.38901577]
[1769017909210,3.44566191,2902.2,2900.8,8.01334577]
[1769017909411,3.44530577,2902.5,2901.2,8.01334577]
[1769017910121,4.01424011,2903.4,2901.2,8.01334577]
[1769017910122,3.44423779,2903.4,2901.7,8.01334577]
[1769017910326,3.44423779,2903.4,2901.9,0.07632396]
[1769017910522,6.88657804,2904.2,2902.5,0.07632396]
[1769017910725,6.88657804,2904.2,2902.5,8.01334577]
[1769017910953,0.7456578,2904.1,2902.6,7.93702181]
[1769017911927,8.57987129,2904.1,2901.7,8.01334577]
[1769017912271,7.83421349,2904.0,2901.7,7.93702181]
[1769017912847,7.83421349,2903.8,2901.7,7.93702181]
[1769017913360,7.83421349,2903.8,2901.7,11.45959118]
[1769017913535,7.83421349,2903.6,2901.7,7.93702181]
[1769017913736,0.001,2902.3,2901.7,7.93702181]
[1769017913933,0.001,2902.3,2901.2,7.93702181]
[1769017914567,0.001,2902.3,2900.6,7.93702181]
[1769017915149,0.001,2902.3,2900.6,11.38454211]
[1769017915455,0.001,2902.3,2900.7,0.07632396]
[1769017915662,0.001,2902.3,2900.7,7.93702181]
[1769017915857,0.001,2902.3,2900.7,8.01334577]
[1769017916440,0.001,2902.3,2900.7,7.93702181]
[1769017916759,0.001,2902.3,2901.3,7.93702181]
[1769017917137,6.88895012,2903.2,2901.5,7.93702181]
[1769017917860,10.33342518,2903.2,2901.1,3.52321902]
[1769017918063,10.33342518,2903.2,2901.1,11.46024083]
[1769017919064,10.33342518,2903.2,2901.2,0.07632396]
[1769017919253,10.33342518,2903.2,2901.2,3.5231457]
[1769017919454,2.16120469,2903.1,2901.2,0.07632396]
[1769017919632,2.16120469,2903.1,2901.2,3.52314626]
[1769017919960,2.16120469,2903.1,2901.4,0.07632396]
[1769017920464,11.27859965,2903.3,2901.8,7.67926252]
[1769017920465,3.4444048,2903.3,2901.8,7.67926252]
[1769017920759,6.8888096,2903.3,2901.8,7.67926252]
[1769017920968,6.88804596,2903.6,2901.8,7.67926252]
[1769017921151,6.88804596,2903.6,2901.8,11.12534976]
[1769017921355,6.88804596,2903.6,2901.2,0.07632396]
[1769017921356,8.75585952,2903.5,2901.3,7.60293856]
[1769017921669,8.75585952,2903.5,2901.1,7.67926252]
[1769017921842,8.75585952,2903.5,2901.3,3.52298589]
[1769017922170,8.75585952,2903.5,2901.3,7.67926252]
[1769017922369,8.75585952,2903.5,2901.8,3.4460937]
[1769017922539,8.75585952,2903.5,2901.9,7.67926252]
[1769017922540,1.24928301,2903.5,2901.9,7.67926252]
[1769017922738,0.7456578,2904.1,2902.3,0.07632396]
[1769017922932,6.88714538,2904.0,2902.5,0.07632396]
[1769017923343,10.33076459,2904.0,2902.3,7.60293856]
[1769017923569,6.88714538,2904.0,2902.4,3.44540646]
[1769017923740,3.44285424,2904.6,2902.6,7.60293856]
[1769017924067,7.50657651,2904.5,2901.9,7.67926252]
[1769017924230,7.50657651,2904.1,2901.9,7.60293856]
[1769017924436,30.0,2903.8,2901.4,7.60293856]
[1769017924631,3.96115248,2904.0,2901.5,0.07632396]
[1769017924632,7.50657651,2903.7,2901.5,0.07632396]
[1769017924832,7.50657651,2903.7,2901.6,3.44631297]
[1769017925042,7.50657651,2903.5,2901.6,7.60293856]
[1769017925243,7.50657651,2903.5,2900.5,0.07632396]
[1769017925244,7.50657651,2903.5,2900.5,7.67926252]
[1769017925448,7.50657651,2903.1,2900.5,7.67926252]
[1769017925645,7.50657651,2902.9,2900.5,7.60293856]
[1769017925849,7.50657651,2902.6,2900.5,7.60293856]
[1769017926635,7.50657651,2902.6,2901.4,0.002]
[1769017926837,8.31423416,2902.5,2901.4,0.002]
[1769017927075,10.33627341,2902.4,2901.4,0.002]
[1769017927441,10.33627341,2902.4,2900.5,7.60293856]
[1769017927940,6.89084894,2902.4,2900.7,7.67926252]
[1769017928270,6.89084894,2902.4,2900.3,0.07632396]
[1769017928461,6.89084894,2902.4,2900.1,0.07632396]
[1769017928462,8.27642717,2902.3,2900.2,7.60293856]
[1769017928657,8.27642717,2902.3,2900.2,11.05097046]
[1769017928862,8.27642717,2902.3,2900.4,3.44773215]
[1769017929065,6.89132382,2902.2,2900.4,3.44773215]
[1769017929371,10.33698573,2902.2,2900.4,7.60293856]
[1769017929582,1.86134129,2902.1,2900.0,3.45026765]
[1769017929775,1.86134129,2902.1,2900.2,3.44796055]
[1769017930240,1.86134129,2902.1,2900.0,11.05312643]
[1769017930241,9.3679178,2902.1,2900.0,0.002]
[1769017931088,10.33769811,2902.0,2900.0,0.002]
[1769017931294,10.33769811,2902.0,2900.0,7.68126252]
[1769017931457,1.97056159,2901.9,2900.0,7.68126252]
[1769017932958,1.97056159,2901.9,2900.2,0.07632396]
[1769017933280,10.33841064,2901.8,2900.0,11.12949521]
[1769017933442,6.89227376,2901.8,2900.1,3.44814879]
[1769017933645,0.88628354,2901.7,2900.1,3.44814879]
[1769017934296,8.39286005,2901.7,2900.0,0.002]
[1769017935188,6.89274882,2901.6,2900.0,7.60493856]
[1769017935385,6.89274882,2901.6,2900.0,7.68126252]
[1769017935553,0.77790324,2901.5,2900.0,7.60493856]
[1769017935748,0.77790324,2901.5,2900.0,7.68126252]
[1769017936161,0.57,2902.4,2900.0,7.68126252]
[1769017936162,3.44635227,2901.7,2900.4,0.07632396]
[1769017936363,3.44472159,2903.0,2900.7,7.3905232]
[1769017936364,6.89061154,2902.5,2900.7,7.3905232]
[1769017936580,6.88966206,2902.9,2901.0,7.46684716]
[1769017936806,3.44483103,2902.9,2901.4,0.07632396]
[1769017937090,3.44423779,2903.4,2901.6,3.52259031]
[1769017937397,1.12221214,2903.3,2901.6,3.52259031]
[1769017937573,1.12221214,2903.3,2901.4,7.46684716]
[1769017937960,7.77688364,2903.2,2901.0,3.44701582]
[1769017938361,7.77688364,2903.2,2901.1,0.07632396]
[1769017938691,7.77688364,2903.2,2901.2,7.3905232]
[1769017938989,8.66679322,2903.1,2901.2,7.46684716]
[1769017939157,3.44471236,2903.0,2901.4,7.46684716]
[1769017939354,4.56661564,2903.3,2901.8,0.07632396]
[1769017939584,0.001,2903.5,2901.8,7.46684716]
[1769017939790,0.001,2903.5,2902.0,0.07632396]
[1769017940099,0.001,2903.5,2902.2,0.07632396]
[1769017940391,3.44514581,2903.5,2902.2,0.07632396]
[1769017940590,6.88929162,2903.5,2902.0,7.46684716]
[1769017940904,7.57822078,2903.5,2901.8,0.07632396]
[1769017941185,7.57822078,2903.5,2901.8,3.5223744]
[1769017941589,7.57822078,2903.5,2900.0,0.002]
[1769017941590,7.77688364,2903.3,2900.0,0.002]
[1769017941787,1.47178735,2901.8,2900.5,3.4476126]
[1769017941998,7.77688364,2902.6,2900.4,3.52407914]
[1769017942204,7.77688364,2902.6,2900.6,0.07632396]
[1769017942406,0.57,2902.8,2901.0,0.07632396]
[1769017942590,0.57,2902.8,2900.8,0.07632396]
[1769017942793,8.34688364,2902.8,2900.7,0.07632396]
[1769017942977,7.77688364,2902.6,2900.7,0.07632396]
[1769017943175,6.89061154,2902.5,2900.9,0.07632396]
[1769017943406,6.89061154,2902.5,2901.1,0.07632396]
[1769017943813,3.44530577,2902.5,2901.1,0.07632396]
[1769017944017,7.77688364,2903.1,2901.3,0.07632396]
[1769017944311,0.77768836,2903.0,2901.5,0.07632396]
[1769017944608,4.22240072,2903.0,2901.7,0.07632396]
[1769017944776,6.88949848,2903.0,2901.5,0.07632396]
[1769017944976,6.88949848,2903.0,2901.2,0.07632396]
[1769017945303,6.88918742,2903.1,2901.4,0.07632396]
[1769017945521,6.88918742,2903.1,2901.6,0.07632396]
[1769017945721,0.68891874,2903.0,2901.6,0.07632396]
[1769017947018,0.68891874,2903.0,2901.4,0.07632396]
[1769017947019,0.68891874,2903.0,2901.0,0.07632396]
[1769017947180,10.33449309,2902.9,2901.2,0.07632396]
[1769017947377,6.88966206,2902.9,2901.2,0.07632396]
[1769017947580,4.1336581,2903.0,2901.6,0.07632396]
[1769017947810,0.41336581,2902.9,2901.6,0.07632396]
[1769017948111,0.41336581,2902.9,2901.2,0.07632396]
[1769017948480,0.41336581,2902.9,2901.0,0.07632396]
[1769017948679,0.41336581,2902.9,2901.2,0.07632396]
[1769017948874,0.41336581,2902.9,2901.0,0.07632396]
[1769017949104,6.89013676,2902.7,2900.7,3.5237453]
[1769017949307,7.77688364,2902.6,2900.7,0.07632396]
[1769017949510,7.77688364,2902.6,2900.6,0.07632396]
[1769017949882,8.34688364,2902.6,2900.6,0.07632396]
[1769017950093,2.21271572,2902.5,2900.6,0.07632396]
[1769017950483,2.21271572,2902.5,2900.8,0.07632396]
[1769017950722,2.21271572,2902.5,2900.9,0.07632396]
[1769017951016,2.78271572,2902.5,2900.9,0.07632396]
[1769017951406,6.89084894,2902.4,2900.9,0.07632396]
[1769017951585,6.89013676,2902.7,2901.3,0.07632396]
[1769017951784,0.83093691,2902.6,2901.3,0.07632396]
[1769017952006,0.82893572,2902.6,2901.3,0.07632396]
[1769017952397,3.44506838,2902.7,2901.5,0.07632396]
[1769017952626,11.22145236,2903.2,2901.5,0.07632396]
[1769017952921,6.88918742,2903.1,2901.8,0.07632396]
[1769017953507,6.88847558,2903.4,2901.8,0.07632396]
[1769017953705,0.68994756,2903.3,2901.8,0.07632396]
[1769017955317,8.4668312,2903.3,2901.6,0.38901577]
[1769017955627,13.77790024,2903.2,2901.6,0.38901577]
[1769017955926,7.77688364,2903.1,2901.6,0.38901577]
[1769017956077,9.93236203,2903.0,2901.6,0.38901577]
[1769017956281,2.15547839,2903.0,2901.6,0.38901577]
[1769017956494,6.88895012,2903.2,2901.7,0.07632396]
[1769017956694,6.88895012,2903.2,2901.9,0.07632396]
[1769017957591,6.88895012,2903.2,2901.7,3.52257129]
[1769017957798,3.44447506,2903.2,2901.9,0.07632396]
[1769017958194,3.44447506,2903.2,2902.0,0.07632396]
[1769017959694,0.001,2903.3,2902.0,0.07632396]
[1769017960490,0.001,2903.3,2901.9,0.07632396]
[1769017961016,0.001,2903.3,2901.9,3.52228516]
[1769017961221,0.001,2903.3,2901.9,0.07632396]
[1769017961421,0.001,2903.3,2902.1,0.07632396]
[1769017961989,0.001,2903.3,2902.1,3.5220503]
[1769017962386,0.001,2903.3,2902.1,0.07632396]
[1769017962809,0.001,2903.3,2901.7,0.07632396]
[1769017963188,0.001,2903.3,2901.7,3.52255803]
[1769017963386,0.001,2903.3,2901.9,0.07632396]
[1769017963684,0.001,2903.3,2902.3,0.07632396]
[1769017963897,0.001,2903.3,2902.4,0.07632396]
[1769017964789,0.001,2903.3,2902.6,0.07632396]
[1769017965529,0.001,2903.3,2902.4,10.91222253]
[1769017965687,0.001,2903.3,2902.6,0.07632396]
[1769017965889,0.001,2903.3,2902.1,3.52204496]
[1769017966115,0.001,2903.3,2902.3,0.07632396]
[1769017966416,0.001,2903.3,2902.1,3.52204496]
[1769017966417,0.001,2903.3,2902.1,0.07632396]
[1769017966619,0.001,2903.3,2902.0,3.5222229]
[1769017966799,0.001,2903.3,2902.0,3.5242229]
[1769017967000,0.001,2903.3,2902.0,0.002]
[1769017967001,0.001,2903.1,2902.0,0.002]
[1769017967322,0.001,2903.1,2902.3,0.07632396]
[1769017967623,0.001,2903.1,2902.5,0.07632396]
[1769017968128,0.001,2903.1,2902.1,0.07632396]
[1769017968303,0.001,2903.1,2902.1,3.52207965]
[1769017968486,0.001,2903.1,2902.2,3.44561598]
[1769017968683,0.001,2903.1,2902.1,0.07632396]
[1769017969393,0.001,2903.1,2902.1,3.52204635]
[1769017969790,0.001,2903.1,2902.1,0.07632396]
[1769017970007,0.001,2903.1,2902.3,0.07632396]
[1769017970192,0.001,2903.1,2902.5,0.07632396]
[1769017971127,3.4429577,2904.5,2902.5,0.07632396]
[1769017971128,0.17996383,2905.2,2903.0,7.93033187]
[1769017971326,6.8845406,2905.1,2903.3,0.07632396]
[1769017971547,0.70645044,2905.0,2903.3,0.07632396]
[1769017971694,8.28493227,2905.0,2902.9,0.07632396]
[1769017972146,7.57848183,2904.8,2903.1,0.07632396]
[1769017972352,7.57848183,2904.8,2902.7,0.07632396]
[1769017972637,7.57848183,2904.7,2902.5,0.07632396]
[1769017972841,7.57848183,2904.5,2902.5,0.07632396]
[1769017973626,7.57848183,2904.5,2902.6,0.07632396]
[1769017973864,7.57848183,2904.5,2902.9,0.07632396]
[1769017974243,6.88610384,2904.4,2902.9,0.07632396]
[1769017974554,6.88610384,2904.4,2903.1,0.07632396]
[1769017974756,0.68861038,2904.3,2903.1,0.07632396]
[1769017975541,4.23881501,2904.6,2903.1,0.07632396]
[1769017975726,8.28493227,2905.0,2903.5,0.07632396]
[1769017975727,0.70645044,2905.0,2903.5,0.07632396]
[1769017976065,6.88491858,2904.9,2903.3,7.93033187]
[1769017976278,11.02037254,2905.4,2903.5,0.07632396]